bitfinex-derivatives/quotes_BNBF0:USTF0_20250608
["timestamp","ask_amount","ask_price","bid_price","bid_amount"]
[1749353106107,1.13036198,648.72,648.19,0.74]
[1749353106408,0.572,648.74,648.19,0.74]
[1749353106603,1.12968781,648.73,648.19,0.74]
[1749353106805,1.12968781,648.72,648.19,0.74]
[1749353107009,0.572,648.74,648.19,0.74]
[1749353107209,1.12966581,648.73,648.19,0.74]
[1749353107409,1.12966581,648.72,648.19,0.74]
[1749353107606,0.572,648.74,648.19,0.74]
[1749353107904,1.12968791,648.73,648.19,0.74]
[1749353108210,1.12968791,648.72,648.19,0.74]
[1749353108409,0.572,648.74,648.19,0.74]
[1749353108607,1.12972034,648.73,648.19,0.74]
[1749353108805,1.12972034,648.72,648.19,0.74]
[1749353109010,0.572,648.74,648.19,0.74]
[1749353109310,1.12970158,648.73,648.19,0.74]
[1749353109511,0.572,648.74,648.19,0.74]
[1749353109810,1.12972488,648.73,648.19,0.74]
[1749353110010,0.26821636,648.75,648.19,0.74]
[1749353110207,1.12973157,648.74,648.19,0.74]
[1749353110506,1.12973157,648.73,648.19,0.74]
[1749353110710,1.12973157,648.72,648.2,0.392]
[1749353110911,0.26821636,648.75,648.2,0.392]
[1749353111111,1.12976797,648.74,648.2,0.392]
[1749353111310,1.12976797,648.73,648.2,0.392]
[1749353111607,1.12976797,648.72,648.2,0.392]
[1749353111806,0.26821636,648.75,648.2,0.392]
[1749353112009,1.12982054,648.74,648.2,0.392]
[1749353112210,1.12982054,648.73,648.2,0.392]
[1749353112410,1.12982054,648.72,648.2,0.392]
[1749353112610,0.26821636,648.75,648.2,0.392]
[1749353112809,1.13257684,648.74,648.2,0.392]
[1749353113008,1.13257684,648.73,648.2,0.392]
[1749353113207,1.13257684,648.72,648.2,0.392]
[1749353113411,0.26821636,648.75,648.2,0.392]
[1749353113612,1.13265144,648.74,648.2,0.392]
[1749353113907,1.76365144,648.73,648.2,0.392]
[1749353114116,1.13265144,648.72,648.2,0.392]
[1749353114409,0.631,648.73,648.2,0.392]
[1749353114609,1.13279373,648.72,648.2,0.392]
[1749353114814,0.631,648.73,648.2,0.392]
[1749353115012,1.13279367,648.72,648.2,0.392]
[1749353115209,0.631,648.73,648.2,0.392]
[1749353115410,1.13288658,648.72,648.2,0.392]
[1749353115611,1.13288658,648.71,648.2,0.392]
[1749353115810,0.631,648.73,648.2,0.392]
[1749353116011,1.13288969,648.72,648.2,0.392]
[1749353116211,1.13288969,648.71,648.2,0.392]
[1749353116509,0.631,648.73,648.2,0.392]
[1749353116713,1.13300064,648.72,648.2,0.392]
[1749353116912,1.13300064,648.71,648.2,0.392]
[1749353117113,0.631,648.73,648.2,0.392]
[1749353117417,1.13300067,648.72,648.2,0.392]
[1749353117616,1.13300067,648.71,648.2,0.392]
[1749353117813,0.631,648.73,648.2,0.392]
[1749353118017,1.13312044,648.72,648.2,0.392]
[1749353118216,1.13312044,648.71,648.2,0.392]
[1749353118418,1.13312044,648.7,648.2,0.392]
[1749353118618,0.631,648.73,648.2,0.392]
[1749353118819,1.13326834,648.72,648.2,0.392]
[1749353119018,1.13326834,648.71,648.2,0.392]
[1749353119218,0.631,648.73,648.2,0.392]
[1749353119219,1.13326834,648.7,648.2,0.392]
[1749353119515,0.631,648.73,648.2,0.392]
[1749353119713,1.13347752,648.72,648.2,0.392]
[1749353119916,1.13347752,648.71,648.2,0.392]
[1749353120116,1.13347752,648.7,648.2,0.392]
[1749353120315,1.13366487,648.69,648.2,0.392]
[1749353120520,0.631,648.73,648.2,0.392]
[1749353120817,1.13366487,648.72,648.2,0.392]
[1749353121018,1.13366487,648.71,648.2,0.392]
[1749353121218,1.13366487,648.7,648.2,0.392]
[1749353121518,1.13366487,648.69,648.2,0.392]
[1749353121819,0.631,648.73,648.2,0.392]
[1749353122016,1.13370571,648.72,648.2,0.392]
[1749353122221,1.13370571,648.71,648.2,0.392]
[1749353122419,1.13370571,648.7,648.2,0.392]
[1749353122618,1.13370571,648.69,648.2,0.392]
[1749353122822,0.631,648.73,648.2,0.392]
[1749353123120,1.13371161,648.72,648.2,0.392]
[1749353123324,1.13371161,648.71,648.2,0.392]
[1749353123619,1.13371161,648.7,648.2,0.392]
[1749353123818,1.13371161,648.69,648.2,0.392]
[1749353124023,0.631,648.73,648.2,0.392]
[1749353124219,1.13374374,648.72,648.2,0.392]
[1749353124423,1.13374374,648.71,648.2,0.392]
[1749353124624,1.13374374,648.7,648.2,0.392]
[1749353124919,1.13374374,648.69,648.2,0.392]
[1749353125120,0.631,648.73,648.21,0.56]
[1749353125324,1.13379133,648.72,648.21,0.56]
[1749353125522,1.13379133,648.71,648.21,0.56]
[1749353125725,1.13379133,648.7,648.21,0.56]
[1749353126021,1.13379133,648.69,648.21,0.56]
[1749353126220,0.631,648.73,648.21,0.56]
[1749353126425,1.1337885,648.72,648.21,0.56]
[1749353126626,1.1337885,648.71,648.21,0.56]
[1749353126921,1.1337885,648.7,648.21,0.56]
[1749353127126,1.1337885,648.69,648.21,0.56]
[1749353127322,1.13385524,648.68,648.21,0.56]
[1749353127524,0.631,648.73,648.21,0.56]
[1749353127728,1.13385524,648.72,648.21,0.56]
[1749353128025,1.13385524,648.71,648.21,0.56]
[1749353128327,1.13385524,648.7,648.21,0.56]
[1749353128527,1.13385524,648.69,648.21,0.56]
[1749353128823,1.13385524,648.68,648.21,0.56]
[1749353129024,0.26821636,648.75,648.21,0.56]
[1749353129229,1.13387255,648.74,648.21,0.56]
[1749353129531,1.13387255,648.73,648.21,0.56]
[1749353129729,1.13387255,648.72,648.21,0.56]
[1749353129933,0.26821636,648.75,648.21,0.56]
[1749353130127,1.13391577,648.74,648.21,0.56]
[1749353130326,1.13391577,648.73,648.21,0.56]
[1749353130526,1.13391577,648.72,648.21,0.56]
[1749353130729,0.26821636,648.75,648.21,0.56]
[1749353130927,1.13396635,648.74,648.21,0.56]
[1749353131230,1.13396635,648.73,648.21,0.56]
[1749353131431,1.13396635,648.72,648.21,0.56]
[1749353131729,0.567,648.72,648.21,0.56]
[1749353132426,0.567,648.72,648.22,0.392]
[1749353139235,1.13413726,648.71,648.22,0.392]
[1749353139534,1.13413726,648.7,648.22,0.392]
[1749353139834,1.13413726,648.69,648.22,0.392]
[1749353140034,1.13413726,648.68,648.22,0.392]
[1749353140233,1.13413726,648.67,648.22,0.392]
[1749353140432,0.26834045,648.57,648.22,0.392]
[1749353143433,0.26834045,648.57,648.21,0.56]
[1749353146840,0.26834045,648.57,648.22,0.392]
[1749353157649,0.26834045,648.57,648.23,0.505]
[1749353169759,0.26834045,648.57,648.24,0.392]
[1749353177066,0.26834045,648.57,648.25,0.491]
[1749353185672,0.788,648.56,648.25,0.491]
[1749353200878,0.788,648.56,648.26,0.392]
[1749353205779,0.26834045,648.57,648.26,0.392]
[1749353209186,0.26834045,648.57,648.27,0.595]
[1749353209687,0.747,648.56,648.27,0.595]
[1749353222893,0.26834045,648.57,648.27,0.595]
[1749353226302,0.781,648.56,648.27,0.595]
[1749353230702,0.781,648.56,648.28,0.392]
[1749353241010,0.781,648.56,648.29,0.523]
[1749353250115,0.781,648.56,648.3,0.392]
[1749353259524,0.781,648.56,648.31,0.764]
[1749353272729,0.781,648.56,648.32,0.392]
[1749353277730,0.781,648.56,648.33,0.717]
[1749353278329,0.26834045,648.57,648.33,0.717]
[1749353280632,0.747,648.56,648.33,0.717]
[1749353291446,0.747,648.56,648.34,0.392]
[1749353304664,0.747,648.56,648.35,0.664]
[1749353310270,0.747,648.56,648.35,1.056]
[1749353316074,0.747,648.56,648.35,0.664]
[1749353325774,0.26834045,648.57,648.35,0.664]
[1749353332779,0.26834045,648.57,647.93,0.389]
[1749353335686,0.26834045,648.57,647.94,0.573]
[1749353346698,0.26834045,648.57,647.86,3.84274728]
[1749353346894,0.26834045,648.57,647.87,0.3087039]
[1749353348698,0.26834045,648.57,647.89,3.84274728]
[1749353348998,0.26834045,648.57,647.9,0.30868961]
[1749353349195,0.26834045,648.57,647.9,4.15143689]
[1749353349795,0.26834045,648.57,647.97,3.84274728]
[1749353350900,0.725,648.56,647.97,3.84274728]
[1749353351495,0.725,648.56,647.91,1.001]
[1749353351496,0.725,648.56,647.99,3.84274728]
[1749353353706,0.725,648.56,648.06,3.84274728]
[1749353359505,0.725,648.56,647.98,3.84274728]
[1749353366411,0.725,648.56,647.99,0.865]
[1749353368011,0.725,648.56,647.99,4.70774728]
[1749353368411,0.725,648.56,647.99,0.865]
[1749353368811,0.725,648.56,647.99,4.70774728]
[1749353369412,0.725,648.56,648.0,0.389]
[1749353369613,0.725,648.56,648.0,4.23174728]
[1749353370611,0.725,648.56,648.0,0.389]
[1749353371013,0.26834045,648.57,648.0,0.389]
[1749353371512,0.26834045,648.57,648.0,4.23174728]
[1749353372912,0.26834045,648.57,648.0,0.389]
[1749353374818,0.623,648.56,648.0,0.389]
[1749353382723,0.623,648.56,648.01,3.84274728]
[1749353383023,0.623,648.56,648.01,4.70474728]
[1749353383221,0.623,648.56,648.02,3.84274728]
[1749353385925,0.623,648.56,648.03,3.84274728]
[1749353389126,0.623,648.56,648.04,0.389]
[1749353395840,0.26835701,648.5,648.04,0.389]
[1749353415253,0.26835701,648.5,648.05,0.821]
[1749353422060,0.895,648.49,648.05,0.821]
[1749353423162,0.895,648.49,648.06,0.389]
[1749353429863,0.31342307,648.49,648.06,0.389]
[1749353444172,0.31342307,648.49,648.03,3.84274728]
[1749353445074,0.31342307,648.49,648.04,0.764]
[1749353447273,0.31342307,648.49,648.05,0.389]
[1749353458982,0.26835701,648.5,648.05,0.389]
[1749353461185,0.26835701,648.5,648.06,0.823]
[1749353464684,0.745,648.49,648.06,0.823]
[1749353472289,0.745,648.49,648.07,0.389]
[1749353486300,0.745,648.49,648.06,0.823]
[1749353487098,0.745,648.49,647.9,0.30868961]
[1749353489400,0.745,648.49,647.92,3.84274728]
[1749353489802,0.745,648.49,647.98,3.84274728]
[1749353490805,0.745,648.49,647.99,0.809]
[1749353496715,0.745,648.49,648.05,3.84274728]
[1749353499913,0.745,648.49,647.99,0.809]
[1749353507921,0.745,648.49,647.9,0.30868961]
[1749353510224,0.745,648.49,647.91,0.389]
[1749353510922,0.745,648.49,647.92,0.566]
[1749353517824,0.26835701,648.5,647.92,0.566]
[1749353521430,0.747,648.49,647.92,0.566]
[1749353522034,0.747,648.49,647.91,0.389]
[1749353525431,0.747,648.49,647.92,0.652]
[1749353530331,0.747,648.49,647.93,0.389]
[1749353532636,0.747,648.49,647.98,3.84274728]
[1749353533936,0.747,648.49,647.93,0.389]
[1749353540539,0.26835701,648.5,647.93,0.389]
[1749353543242,0.763,648.49,647.93,0.389]
[1749353547946,0.763,648.49,647.94,0.833]
[1749353549044,0.763,648.49,647.95,0.30866579]
[1749353553352,0.763,648.49,647.96,0.389]
[1749353553648,0.763,648.49,647.97,0.30865626]
[1749353561861,0.763,648.49,648.06,3.84274728]
[1749353562059,0.763,648.49,648.07,0.30860863]
[1749353562660,0.763,648.49,648.08,0.637]
[1749353562861,0.763,648.49,648.09,0.30859911]
[1749353576273,0.26830735,648.77,648.09,0.30859911]
[1749353579679,0.623,648.76,648.1,3.84274728]
[1749353579977,0.623,648.76,648.11,0.30858959]
[1749353585182,0.623,648.76,648.12,0.843]
[1749353585485,0.623,648.76,648.13,0.30858006]
[1749353597384,0.623,648.76,648.14,3.84274728]
[1749353597584,0.623,648.76,648.15,0.30857054]
[1749353598185,0.623,648.76,648.15,4.15131782]
[1749353600390,0.623,648.76,648.16,3.84274728]
[1749353600688,0.623,648.76,648.17,0.30856102]
[1749353601287,0.623,648.76,648.17,4.1513083]
[1749353602289,0.623,648.76,648.18,3.84274728]
[1749353602488,0.623,648.76,648.19,0.3085515]
[1749353603590,0.623,648.76,648.19,4.15129878]
[1749353604493,0.623,648.76,648.2,3.84274728]
[1749353605295,0.623,648.76,648.21,3.84274728]
[1749353605798,0.623,648.76,648.22,3.84274728]
[1749353606294,0.623,648.76,648.19,0.3085515]
[1749353606295,0.623,648.76,648.23,3.84274728]
[1749353607299,0.623,648.76,648.25,3.84274728]
[1749353608394,0.623,648.76,648.28,3.84274728]
[1749353609294,0.623,648.76,648.29,3.84274728]
[1749353609995,0.623,648.76,648.28,3.84274728]
[1749353611295,0.623,648.76,648.29,0.674]
[1749353611996,0.623,648.76,648.3,0.389]
[1749353622008,0.623,648.76,648.32,3.84274728]
[1749353622306,0.623,648.76,648.3,0.389]
[1749353628714,0.26830735,648.77,648.3,0.389]
[1749353632620,0.694,648.76,648.3,0.389]
[1749353634217,0.694,648.76,648.29,0.674]
[1749353641315,0.694,648.76,648.22,0.385]
[1749353641815,0.694,648.76,648.25,3.84274728]
[1749353642016,0.694,648.76,648.24,3.84274728]
[1749353643316,0.694,648.76,648.27,3.84274728]
[1749353647826,0.694,648.76,648.28,3.84274728]
[1749353649830,0.694,648.76,648.29,3.84274728]
[1749353652937,0.694,648.76,648.3,3.84274728]
[1749353654739,0.26830735,648.77,648.3,3.84274728]
[1749353657435,0.614,648.76,648.3,3.84274728]
[1749353657835,0.614,648.76,648.31,3.84274728]
[1749353659541,0.614,648.76,648.32,3.84274728]
[1749353662740,0.614,648.76,648.22,0.385]
[1749353662741,0.614,648.76,648.24,3.84274728]
[1749353664541,0.614,648.76,648.22,0.385]
[1749353665344,0.614,648.76,648.19,0.3085515]
[1749353666444,0.614,648.76,648.19,4.15129878]
[1749353666847,0.614,648.76,648.19,0.3085515]
[1749353669149,0.614,648.76,648.2,0.386]
[1749353669348,0.614,648.76,648.2,0.69454674]
[1749353679455,0.614,648.76,648.36,3.84274728]
[1749353679955,0.614,648.76,648.31,3.84274728]
[1749353680457,0.614,648.76,648.3,3.84274728]
[1749353681160,0.614,648.76,648.29,3.84274728]
[1749353683064,0.614,648.76,648.3,3.84274728]
[1749353683463,0.614,648.76,648.31,3.84274728]
[1749353689769,0.614,648.76,648.29,3.84274728]
[1749353691072,0.614,648.76,648.3,0.385]
[1749353712386,0.614,648.76,648.32,3.84274728]
[1749353715393,0.614,648.76,648.25,3.84274728]
[1749353716394,0.614,648.76,648.24,3.84274728]
[1749353716594,0.26830735,648.77,648.24,3.84274728]
[1749353718293,0.26830735,648.77,648.25,0.385]
[1749353718493,0.26830735,648.77,648.25,4.22774728]
[1749353719996,0.26830735,648.77,648.25,0.385]
[1749353720194,0.593,648.76,648.25,0.385]
[1749353734307,0.26830735,648.77,648.25,0.385]
[1749353736404,0.26830735,648.77,648.2,0.30854674]
[1749353737002,0.26830735,648.77,648.28,3.84274728]
[1749353737806,0.601,648.76,648.28,3.84274728]
[1749353739008,0.601,648.76,648.29,0.385]
[1749353739507,0.601,648.76,648.3,3.84274728]
[1749353741510,0.601,648.76,648.31,3.84274728]
[1749353742309,0.601,648.76,648.29,0.385]
[1749353742310,0.601,648.76,648.3,3.84274728]
[1749353742710,0.601,648.76,648.31,3.84274728]
[1749353743710,0.601,648.76,648.29,0.385]
[1749353751114,0.601,648.76,648.29,4.22774728]
[1749353751712,0.601,648.76,648.29,0.385]
[1749353760716,0.601,648.76,648.32,3.84274728]
[1749353762923,0.601,648.76,648.31,3.84274728]
[1749353763821,0.26830735,648.77,648.31,3.84274728]
[1749353766422,0.868,648.76,648.31,3.84274728]
[1749353769326,0.868,648.76,648.3,3.84274728]
[1749353769724,0.868,648.76,648.31,3.84274728]
[1749353770123,0.868,648.76,648.26,3.84274728]
[1749353771030,0.868,648.76,648.27,0.386]
[1749353784144,0.26826909,648.73,648.27,0.386]
[1749353789845,0.687,648.72,648.27,0.386]
[1749353798051,0.687,648.72,648.2,0.30854674]
[1749353801060,0.687,648.72,648.21,0.386]
[1749353817876,0.26826909,648.73,648.21,0.386]
[1749353821575,0.97,648.72,648.21,0.386]
[1749353821875,0.97,648.72,648.21,0.69454198]
[1749353822676,0.97,648.72,648.22,0.30853722]
[1749353824078,0.97,648.72,648.25,3.84274728]
[1749353825177,0.97,648.72,648.24,3.84274728]
[1749353826582,0.97,648.72,648.25,3.84274728]
[1749353827478,0.97,648.72,648.26,3.84274728]
[1749353828479,0.97,648.72,648.27,0.386]
[1749353833284,0.97,648.72,648.28,3.84274728]
[1749353833988,0.97,648.72,648.27,4.22874728]
[1749353834189,0.97,648.72,648.28,3.84274728]
[1749353834687,0.97,648.72,648.27,4.22874728]
[1749353835088,0.97,648.72,648.28,3.84274728]
[1749353836391,0.97,648.72,648.27,0.386]
[1749353836889,0.97,648.72,648.27,4.22874728]
[1749353838491,0.97,648.72,648.28,3.84274728]
[1749353838891,0.97,648.72,648.27,0.386]
[1749353838892,0.97,648.72,648.27,4.22874728]
[1749353840096,0.97,648.72,648.34,3.84274728]
[1749353840494,0.97,648.72,648.33,3.84274728]
[1749353844703,0.97,648.72,648.28,3.84274728]
[1749353845504,0.97,648.72,648.27,4.22874728]
[1749353846400,0.97,648.72,648.32,3.84274728]
[1749353846902,0.97,648.72,648.31,3.84274728]
[1749353847403,0.97,648.72,648.28,3.84274728]
[1749353850104,0.97,648.72,648.27,0.386]
[1749353852509,0.26821636,648.81,648.27,0.386]
[1749353854206,0.26821636,648.81,648.27,4.22874728]
[1749353855610,0.26821636,648.81,648.27,3.84274728]
[1749353856609,0.784,648.8,648.27,3.84274728]
[1749353859111,0.784,648.8,648.28,0.386]
[1749353859615,0.784,648.8,648.28,4.22874728]
[1749353860616,0.784,648.8,648.28,0.386]
[1749353870221,0.784,648.8,648.29,3.84274728]
[1749353872025,0.784,648.8,648.3,3.84274728]
[1749353876224,0.784,648.8,648.28,0.386]
[1749353876225,0.784,648.8,648.31,3.84274728]
[1749353878223,0.784,648.8,648.22,0.30853722]
[1749353880132,0.784,648.8,648.23,3.84274728]
[1749353880628,0.784,648.8,648.24,3.84274728]
[1749353881226,0.784,648.8,648.25,0.386]
[1749353883834,0.784,648.8,648.25,0.69452294]
[1749353884033,0.784,648.8,648.26,0.30851818]
[1749353888231,0.784,648.8,648.39,3.84274728]
[1749353889931,0.784,648.8,648.32,3.84274728]
[1749353891032,0.784,648.8,648.31,3.84274728]
[1749353891835,0.784,648.8,648.32,3.84274728]
[1749353895635,0.26821636,648.81,648.32,3.84274728]
[1749353899639,0.665,648.8,648.32,3.84274728]
[1749353900334,0.665,648.8,648.33,3.84274728]
[1749353901834,0.665,648.8,648.26,0.30851818]
[1749353901835,0.665,648.8,648.32,3.84274728]
[1749353904939,0.665,648.8,648.26,0.30851818]
[1749353907648,0.665,648.8,648.27,0.386]
[1749353925659,0.26821636,648.81,648.27,0.386]
[1749353928463,0.735,648.8,648.27,0.386]
[1749353935564,0.735,648.8,648.26,0.30851818]
[1749353938267,0.735,648.8,648.27,0.386]
[1749353946374,0.26821636,648.81,648.27,0.386]
[1749353949076,0.595,648.8,648.27,0.386]
[1749353956283,0.595,648.8,648.26,0.30851818]
[1749353959590,0.595,648.8,648.27,0.386]
[1749353986313,0.26821636,648.81,648.27,0.386]
[1749353987610,0.26821636,648.81,648.26,0.30851818]
[1749353989915,0.856,648.8,648.26,0.30851818]
[1749353991618,0.856,648.8,648.27,0.386]
[1749354001830,1.12132138,648.79,648.27,0.386]
[1749354002029,1.12132138,648.78,648.27,0.386]
[1749354002230,1.12132138,648.77,648.27,0.386]
[1749354002430,0.856,648.8,648.27,0.386]
[1749354002734,1.12116346,648.79,648.27,0.386]
[1749354003026,1.12116346,648.78,648.27,0.386]
[1749354003329,1.12116346,648.77,648.27,0.386]
[1749354003523,1.12116346,648.76,648.27,0.386]
[1749354003730,0.856,648.8,648.26,0.30851818]
[1749354003929,1.12101761,648.79,648.26,0.30851818]
[1749354004127,1.12101761,648.78,648.26,0.30851818]
[1749354004331,1.12101761,648.77,648.26,0.30851818]
[1749354004531,0.856,648.8,648.26,0.30851818]
[1749354004726,1.12098251,648.79,648.26,0.30851818]
[1749354004932,1.12098251,648.78,648.26,0.30851818]
[1749354005231,1.12098251,648.77,648.26,0.30851818]
[1749354005431,0.856,648.8,648.26,0.30851818]
[1749354005631,1.12070004,648.79,648.26,0.30851818]
[1749354005830,1.12070004,648.78,648.26,0.30851818]
[1749354006030,1.12070004,648.77,648.26,0.30851818]
[1749354006232,0.856,648.8,648.26,0.30851818]
[1749354006430,1.12070064,648.79,648.26,0.30851818]
[1749354006632,0.856,648.8,648.26,0.30851818]
[1749354006633,1.12070064,648.78,648.26,0.30851818]
[1749354006829,1.12070064,648.77,648.27,0.386]
[1749354007134,0.856,648.8,648.27,0.386]
[1749354007434,1.12062733,648.79,648.27,0.386]
[1749354007734,1.12062733,648.78,648.27,0.386]
[1749354007933,0.856,648.8,648.27,0.386]
[1749354008130,1.12056688,648.79,648.27,0.386]
[1749354008329,1.12056688,648.78,648.27,0.386]
[1749354008530,0.856,648.8,648.27,0.386]
[1749354008729,1.12051651,648.79,648.27,0.386]
[1749354008931,1.12051651,648.78,648.27,0.386]
[1749354009129,0.856,648.8,648.27,0.386]
[1749354009329,1.12055332,648.79,648.27,0.386]
[1749354009530,1.12055332,648.78,648.27,0.386]
[1749354009728,0.856,648.8,648.27,0.386]
[1749354009930,1.12051605,648.79,648.27,0.386]
[1749354010132,1.12051605,648.78,648.27,0.386]
[1749354010335,0.26821636,648.81,648.27,0.386]
[1749354010632,1.12055203,648.8,648.27,0.386]
[1749354010831,1.12055203,648.79,648.27,0.386]
[1749354011032,0.26821636,648.81,648.27,0.386]
[1749354011231,1.12049272,648.8,648.27,0.386]
[1749354011532,1.12049272,648.79,648.27,0.386]
[1749354011731,0.26821636,648.81,648.27,0.386]
[1749354013236,0.893,648.8,648.27,0.386]
[1749354021938,0.893,648.8,648.26,0.30851818]
[1749354022239,0.26829391,648.67,648.26,0.30851818]
[1749354024342,0.26829391,648.67,648.27,0.386]
[1749354037556,0.26829391,648.67,648.26,0.30851818]
[1749354041058,0.26829391,648.67,648.27,0.386]
[1749354052065,0.26829391,648.67,648.26,0.30851818]
[1749354054468,0.26829391,648.67,648.27,0.386]
[1749354063680,0.734,648.66,648.27,0.386]
[1749354077586,0.734,648.66,648.26,0.30851818]
[1749354080993,0.734,648.66,648.27,0.386]
[1749354100603,0.26829391,648.67,648.27,0.386]
[1749354102308,0.26829391,648.67,648.26,0.30851818]
[1749354104105,0.733,648.66,648.26,0.30851818]
[1749354106209,0.733,648.66,648.27,0.386]
[1749354126423,0.733,648.66,648.26,0.30851818]
[1749354129626,0.733,648.66,648.27,0.386]
[1749354149038,0.26829391,648.67,648.27,0.386]
[1749354153144,0.692,648.66,648.27,0.386]
[1749354154747,0.692,648.66,647.76,0.26829391]
[1749354155042,0.692,648.66,647.78,0.30874679]
[1749354158751,0.692,648.66,647.79,0.386]
[1749354159052,0.692,648.66,647.8,0.30873726]
[1749354163352,0.692,648.66,647.97,3.84274728]
[1749354163556,0.692,648.66,647.98,0.3086515]
[1749354164553,0.692,648.66,647.98,4.15139878]
[1749354165055,0.692,648.66,647.98,0.3086515]
[1749354181263,0.692,648.66,647.98,4.15139878]
[1749354184565,0.692,648.66,647.99,3.84274728]
[1749354184764,0.692,648.66,648.0,0.30864197]
[1749354185763,0.692,648.66,648.0,4.15138925]
[1749354186369,0.692,648.66,648.01,3.84274728]
[1749354186566,0.692,648.66,648.02,0.30863244]
[1749354187171,0.26829391,648.67,648.13,3.84274728]
[1749354187372,0.26829391,648.67,648.14,0.3085753]
[1749354188271,0.26829391,648.67,648.15,0.386]
[1749354189972,0.859,648.66,648.15,0.386]
[1749354200678,0.859,648.66,648.15,4.22874728]
[1749354201576,0.859,648.66,648.17,3.84274728]
[1749354204677,0.859,648.66,648.18,3.84274728]
[1749354205079,0.859,648.66,648.17,3.84274728]
[1749354205677,0.859,648.66,648.18,3.84274728]
[1749354210080,0.859,648.66,648.19,3.84274728]
[1749354210580,0.859,648.66,648.15,0.386]
[1749354218188,0.859,648.66,648.14,4.15132258]
[1749354218989,0.859,648.66,648.15,3.84274728]
[1749354220188,0.859,648.66,648.17,3.84274728]
[1749354220586,0.859,648.66,648.18,0.386]
[1749354221593,0.859,648.66,648.18,4.22874728]
[1749354222890,0.859,648.66,648.19,3.84274728]
[1749354223795,0.859,648.66,648.2,3.84274728]
[1749354224795,0.859,648.66,648.22,3.84274728]
[1749354225598,0.859,648.66,648.23,3.84274728]
[1749354230602,0.859,648.66,648.18,0.386]
[1749354236607,0.859,648.66,648.14,0.3085753]
[1749354237208,0.26829391,648.67,648.14,0.3085753]
[1749354239110,0.26829391,648.67,648.15,0.386]
[1749354239606,0.886,648.66,648.15,0.386]
[1749354240506,0.886,648.66,648.17,3.84274728]
[1749354240910,0.886,648.66,648.15,4.22874728]
[1749354241310,0.886,648.66,648.15,0.386]
[1749354242312,0.886,648.66,648.15,4.22874728]
[1749354242509,0.886,648.66,648.15,4.53731782]
[1749354242912,0.886,648.66,648.16,0.30856578]
[1749354245513,0.886,648.66,648.2,3.84274728]
[1749354245716,0.886,648.66,648.2,4.15129402]
[1749354246518,0.886,648.66,648.21,3.84274728]
[1749354246821,0.886,648.66,648.27,3.84274728]
[1749354247814,0.886,648.66,648.26,3.84274728]
[1749354248817,0.886,648.66,648.24,3.84274728]
[1749354249518,0.886,648.66,648.26,3.84274728]
[1749354249720,0.18797334,648.66,648.26,3.84274728]
[1749354250118,0.18797334,648.66,648.27,3.84274728]
[1749354250519,0.18797334,648.66,648.21,3.84274728]
[1749354250925,0.18797334,648.66,648.2,0.30854674]
[1749354252022,0.06596558,648.66,648.2,0.30854674]
[1749354260433,0.06596558,648.66,648.27,3.84274728]
[1749354260629,0.06596558,648.66,648.27,4.1512607]
[1749354260833,0.06596558,648.66,648.29,3.84274728]